[Event "AI Cup Div-3 2023"]
[Site "Online"]
[Date "2023.09.25"]
[Round "51.1"]
[White "Radjabov, Teimour"]
[Black "Yilmaz, Mustafa"]
[Result "1-0"]
[Annotator "TA"]
[ECO "A13"]
[WhiteElo "2745"]
[BlackElo "2640"]
[PlyCount "147"]
[EventDate "2023.09.18"]
[EventType "k.o."]
[EventCountry "NET"]
[SourceTitle "playchess.com"]
[Source "ChessBase"]
[SourceQuality "1"]
[TimeControl "900+3"]

{[%evp 9,147,-5,-5,-6,17,0,16,8,22,26,26,0,0,0,0,0,75,27,45,16,4,14,31,27,27,0,0,-40,0,-24,-37,-72,6,7,5,5,5,6,4,3,3,0,0,0,0,0,0,0,0,0,0,0,4,4,4,4,4,4,4,4,14,14,14,12,23,23,23,23,23,23,23,23,23,14,14,4,14,14,14,14,23,14,23,23,23,23,23,23,23,23,23,23,23,4,4,4,4,4,4,4,4,4,4,0,0,0,0,0,0,0,4,4,4,4,4,4,4,4,4,4,4,4,12,12,12,12,12,12,12,12,12,12,12,12,12,12,12,12,12850,27999]} 1. Nf3 {[%emt 0:00:03]} d5 {[%emt 0:00:05]} 2. c4 {[%emt 0:00:01]} e6 {[%emt 0:00:04]} 3. e3 {[%emt 0:00:02]} Nf6 {[%emt 0:00:02]} 4. b3 {[%emt 0:00:03]} b6 {[%emt 0:00:46]} 5. cxd5 {[%emt 0:00:03]} exd5 {[%emt 0:00:10]} 6. Bb2 {[%emt 0:00:01] A13: English Opening: 1...e6.} Be7 {[%emt 0:00:17]} 7. Nc3 {[%emt 0:00:02]} O-O {[%emt 0:00:06]} 8. d4 {[%emt 0:00:18] The position is equal.} Bb7 {[%emt 0:00:16]} 9. Bd3 {[%emt 0:00:03]} Nbd7 {[%emt 0:00:28]} 10. Qc2 {[%emt 0:00:14]} Re8 {[%emt 0:01:48]} 11. O-O {[%emt 0:00:09]} Bf8 {[%emt 0:00:29]} 12. Rac1 {[%emt 0:00:40]} Ne4 {[%emt 0:00:31]} (12... c6 $11 {remains equal.}) 13. Rfd1 {[%emt 0:00:11] [#]} ({Better is} 13. Ne5 $16) 13... a6 $146 {[%emt 0:00:08]} ({Predecessor:} 13... h6 14. Ne2 Rc8 15. Ng3 Nxg3 16. hxg3 Qe7 17. Bf5 g6 18. Bh3 c5 19. Bxd7 Qxd7 20. dxc5 bxc5 {½-½ Gorodetzky,D (2409)-Thybo,J (2464) EU-chT U18 Rymanow Zdroj 2017 (2.6)}) 14. Bf1 {[%emt 0:00:16]} (14. Nxe4 $2 dxe4 15. Qxc7 Bd5 16. Qxd8 Raxd8 $19) 14... Bd6 {[%emt 0:00:09]} 15. Nxe4 {[%emt 0:00:07]} dxe4 {[%emt 0:00:19] [#]} 16. Ne5 {[%emt 0:00:01]} Qe7 {[%emt 0:00:52]} (16... Bd5 17. Nc4) 17. Bc4 {[%emt 0:01:31]} Rf8 {[%emt 0:01:00]} 18. Qc3 {[%emt 0:00:19]} Rae8 {[%emt 0:01:01]} 19. h3 {[%emt 0:00:37]} b5 {[%emt 0:01:12] Strongly threatening ...Bb4.} (19... Nf6 $5 {[%cal Rb6b5]}) 20. Bf1 {[%emt 0:00:07] [#]} Bd5 {[%emt 0:00:42]} ({Black should try} 20... Nb8 $1 $17) 21. a4 $11 {[%emt 0:00:06]} Nxe5 {[%emt 0:00:23]} 22. dxe5 {[%emt 0:00:07]} Bxe5 {[%emt 0:00:10]} 23. Qxe5 {[%emt 0:00:04]} Qxe5 {[%emt 0:00:00]} (23... Bxb3 $2 24. Qxg7#) 24. Bxe5 {[%emt 0:00:01]} Rxe5 {[%emt 0:00:00]} 25. axb5 {[%emt 0:00:16]} Bxb3 {[%emt 0:00:26]} 26. Rd4 {[%emt 0:00:05] And now Rb4 would win.} axb5 {[%emt 0:00:03] Hoping for ...c5.} 27. Rxc7 {[%emt 0:00:00]} h5 {[%emt 0:00:59]} 28. Rb7 {[%emt 0:00:03] Prevents Rb8} Bc4 {[%emt 0:00:18][%mdl 64] Deflection} 29. Bxc4 {[%emt 0:00:02]} bxc4 {[%emt 0:00:00]} 30. Rxc4 {[%emt 0:00:00][%mdl 4096] Endgame KRR-KRR} Rd8 {[%emt 0:00:09]} 31. g4 {[%emt 0:00:23]} hxg4 {[%emt 0:00:44]} 32. hxg4 {[%emt 0:00:03]} Rde8 {[%emt 0:01:17]} 33. Rbb4 {[%emt 0:00:11]} Kh7 {[%emt 0:00:15]} 34. Kg2 {[%emt 0:00:02]} R8e7 {[%emt 0:00:04]} 35. Kg3 {[%emt 0:00:01]} g5 {[%emt 0:00:01]} 36. Rb8 {[%emt 0:00:03]} Rd5 {[%emt 0:00:17]} 37. Rcc8 {[%emt 0:00:07]} Kg7 {[%emt 0:00:06]} 38. Rh8 {[%emt 0:00:30] White wants to mate with Rbg8+.} Re6 {[%emt 0:00:21]} 39. Rbe8 {[%emt 0:01:12]} Rde5 {[%emt 0:00:06]} 40. Reg8+ {[%emt 0:00:08]} Kf6 {[%emt 0:00:01]} 41. Rh7 {[%emt 0:00:01]} Re8 {[%emt 0:00:17]} 42. Rh6+ {[%emt 0:00:06]} Ke7 {[%emt 0:00:01]} 43. Rg7 {[%emt 0:00:01]} Kf8 {[%emt 0:00:08]} 44. Rgh7 {[%emt 0:00:06]} R8e6 {[%emt 0:00:02]} 45. Rh5 {[%emt 0:00:25]} Kg8 {[%emt 0:00:04]} 46. Kg2 {[%emt 0:00:04]} Ra5 {[%emt 0:00:19]} 47. Rh8+ {[%emt 0:00:10]} Kg7 {[%emt 0:00:01]} 48. R5h7+ {[%emt 0:00:01]} Kf6 {[%emt 0:00:11]} 49. Rb8 {[%emt 0:00:26]} Kg6 {[%emt 0:00:07]} 50. Rhh8 {[%emt 0:00:07]} Kg7 {[%emt 0:00:00]} 51. Rh5 {[%emt 0:00:09]} Rh6 {[%emt 0:00:07]} 52. Rxh6 {[%emt 0:00:27]} Kxh6 {[%emt 0:00:00] KR-KR} 53. Rb4 {[%emt 0:00:03]} Re5 $1 {[%emt 0:00:03]} 54. Kf1 {[%emt 0:00:00]} Kg6 {[%emt 0:00:01]} 55. Ke2 {[%emt 0:00:02]} f6 {[%emt 0:00:05]} 56. Kd2 {[%emt 0:00:02]} f5 {[%emt 0:00:06]} 57. Rb6+ {[%emt 0:00:02]} Kg7 {[%emt 0:00:01]} 58. gxf5 {[%emt 0:00:14]} Rxf5 {[%emt 0:00:00]} 59. Ke2 {[%emt 0:00:01]} Re5 {[%emt 0:00:00]} 60. Kf1 {[%emt 0:00:00]} Kf7 {[%emt 0:00:03]} 61. Kg2 {[%emt 0:00:02]} Re6 {[%emt 0:00:03]} 62. Rb5 {[%emt 0:00:04]} Kf6 {[%emt 0:00:07]} 63. Kg3 {[%emt 0:00:01]} Re5 {[%emt 0:00:07]} 64. Rb8 {[%emt 0:00:11]} Ra5 {[%emt 0:00:09]} 65. Kg4 {[%emt 0:00:04]} Ra2 {[%emt 0:00:01]} 66. Rf8+ {[%emt 0:00:13]} Kg7 {[%emt 0:00:09]} 67. Rf5 {[%emt 0:00:02]} Kg6 {[%emt 0:00:01]} 68. Rxg5+ {[%emt 0:00:02]} Kf6 {[%emt 0:00:00]} 69. Rf5+ {[%emt 0:00:05]} Ke6 {[%emt 0:00:01]} 70. Kg5 {[%emt 0:00:03]} Rb2 {[%emt 0:00:02]} 71. Rf8 {[%emt 0:00:12]} Ke5 {[%emt 0:00:01]} 72. Kg4 {[%emt 0:00:01]} Ra2 {[%emt 0:00:01]} 73. Re8+ {[%emt 0:00:04][%mdl 64] Deflection} Kf6 $2 {[%emt 0:00:03][%mdl 8192]} (73... Kd5 $11) 74. Rxe4 {[%emt 0:00:03] Weighted Error Value: White=0.06 (flawless) /Black=0.08 (flawless)} 1-0

[Event "AI Cup Div-3 2023"]
[Site "Online"]
[Date "2023.09.25"]
[Round "51.1"]
[White "Matlakov, Maxim"]
[Black "Le, Tuan Minh"]
[Result "1-0"]
[Annotator "ChessBase"]
[ECO "D78"]
[WhiteElo "2674"]
[BlackElo "2559"]
[PlyCount "64"]
[EventDate "2023.09.18"]
[EventType "k.o."]
[EventCountry "NET"]
[SourceTitle "playchess.com"]
[Source "ChessBase"]
[SourceQuality "1"]
[TimeControl "900+3"]

1. c4 {[%emt 0:00:19]} c6 {[%emt 0:00:05]} 2. Nf3 {[%emt 0:00:17]} d5 {[%emt 0:00:00]} 3. g3 {[%emt 0:00:07]} Nf6 {[%emt 0:00:02]} 4. Bg2 {[%emt 0:00:02]} g6 {[%emt 0:00:01]} 5. O-O {[%emt 0:00:05]} Bg7 {[%emt 0:00:00]} 6. d4 {[%emt 0:00:01]} O-O {[%emt 0:00:01]} 7. Nc3 {[%emt 0:00:03]} dxc4 {[%emt 0:00:02]} 8. e4 {[%emt 0:00:02]} b5 {[%emt 0:00:07]} 9. Qe2 {[%emt 0:01:08]} Bg4 {[%emt 0:00:05]} 10. e5 {[%emt 0:00:07]} Nd5 {[%emt 0:00:02]} 11. a4 {[%emt 0:00:01]} Nxc3 {[%emt 0:00:31]} 12. bxc3 {[%emt 0:00:02]} Nd7 {[%emt 0:00:00]} 13. Qe4 {[%emt 0:00:59]} Bxf3 {[%emt 0:00:27]} 14. Bxf3 {[%emt 0:00:25]} Nb6 {[%emt 0:00:00]} 15. Qxc6 {[%emt 0:02:08]} Nxa4 {[%emt 0:00:02]} 16. Qxb5 {[%emt 0:00:16]} Nxc3 {[%emt 0:00:08]} 17. Qxc4 {[%emt 0:00:02]} Rc8 {[%emt 0:00:02]} 18. Qb4 {[%emt 0:00:03]} f6 {[%emt 0:00:18]} 19. Rxa7 {[%emt 0:03:46]} fxe5 {[%emt 0:00:02]} 20. Bg4 {[%emt 0:00:01]} Rc7 {[%emt 0:00:40]} 21. Rxc7 {[%emt 0:00:20]} Qxc7 {[%emt 0:00:01]} 22. d5 {[%emt 0:00:04]} h5 {[%emt 0:00:07]} 23. Be6+ {[%emt 0:00:42]} Kh7 {[%emt 0:00:02]} 24. Bg5 {[%emt 0:00:18]} Bf6 {[%emt 0:00:11]} 25. Bxf6 {[%emt 0:00:09]} Rxf6 {[%emt 0:00:00]} 26. Re1 {[%emt 0:00:12]} e4 {[%emt 0:00:05]} 27. Kg2 {[%emt 0:00:29]} Qe5 {[%emt 0:00:13]} 28. Qxe7+ {[%emt 0:00:06]} Kh6 {[%emt 0:00:01]} 29. Qc5 {[%emt 0:01:34]} Kh7 {[%emt 0:00:02]} 30. Rc1 {[%emt 0:00:30]} Rf3 {[%emt 0:00:02]} 31. Ra1 {[%emt 0:00:12]} e3 {[%emt 0:00:06]} 32. fxe3 {[%emt 0:00:21]} Rf1 {[%emt 0:00:56]} 1-0

[Event "AI Cup Div-3 2023"]
[Site "Online"]
[Date "2023.09.25"]
[Round "51.1"]
[White "Chigaev, Maksim"]
[Black "Kobo, Ori"]
[Result "1-0"]
[Annotator "ChessBase"]
[ECO "A08"]
[WhiteElo "2615"]
[BlackElo "2551"]
[PlyCount "61"]
[EventDate "2023.09.18"]
[EventType "k.o."]
[EventCountry "NET"]
[SourceTitle "playchess.com"]
[Source "ChessBase"]
[SourceQuality "1"]
[TimeControl "900+3"]

1. e4 {[%emt 0:00:07]} e6 {[%emt 0:00:06]} 2. d3 {[%emt 0:00:15]} d5 {[%emt 0:00:02]} 3. Nd2 {[%emt 0:00:00]} c5 {[%emt 0:00:01]} 4. Ngf3 {[%emt 0:00:00]} Bd6 {[%emt 0:00:06]} 5. g3 {[%emt 0:00:04]} Nc6 {[%emt 0:00:01]} 6. Bg2 {[%emt 0:00:01]} Nge7 {[%emt 0:00:01]} 7. O-O {[%emt 0:00:00]} O-O {[%emt 0:00:01]} 8. Re1 {[%emt 0:00:01]} Qc7 {[%emt 0:00:03]} 9. c3 {[%emt 0:00:06]} Bd7 {[%emt 0:00:09]} 10. Qe2 {[%emt 0:00:08]} f6 {[%emt 0:00:02]} 11. h4 {[%emt 0:00:11]} b5 {[%emt 0:00:22]} 12. h5 {[%emt 0:00:04]} d4 {[%emt 0:00:18]} 13. h6 {[%emt 0:01:35]} g6 {[%emt 0:00:09]} 14. e5 {[%emt 0:00:04]} fxe5 {[%emt 0:00:11]} 15. Ne4 {[%emt 0:00:16]} dxc3 {[%emt 0:01:08]} 16. bxc3 {[%emt 0:00:05]} b4 {[%emt 0:02:09]} 17. cxb4 {[%emt 0:02:54]} cxb4 {[%emt 0:00:20]} 18. Bb2 {[%emt 0:00:05]} Nf5 {[%emt 0:00:59]} 19. Nxd6 {[%emt 0:00:11]} Qxd6 {[%emt 0:00:02]} 20. Nxe5 {[%emt 0:00:02]} Nfd4 {[%emt 0:02:59]} 21. Bxd4 {[%emt 0:02:13]} Nxd4 {[%emt 0:00:03]} 22. Qb2 {[%emt 0:00:01]} Rac8 {[%emt 0:01:10]} 23. Nc4 {[%emt 0:00:03]} Rxc4 {[%emt 0:00:04]} 24. dxc4 {[%emt 0:00:02]} e5 {[%emt 0:00:11]} 25. Bd5+ {[%emt 0:00:55]} Kh8 {[%emt 0:00:13]} 26. f4 {[%emt 0:00:08]} Qc5 {[%emt 0:01:15]} 27. Rxe5 {[%emt 0:00:08]} Ne2+ {[%emt 0:00:47]} 28. Kg2 {[%emt 0:00:56]} Nc3 {[%emt 0:00:03]} 29. Qf2 {[%emt 0:00:50]} Qxf2+ {[%emt 0:01:49]} 30. Kxf2 {[%emt 0:00:03]} a5 {[%emt 0:00:01]} 31. Re7 {[%emt 0:00:08]} 1-0

[Event "AI Cup Div-3 2023"]
[Site "Online"]
[Date "2023.09.25"]
[Round "51.1"]
[White "Demchenko, Anton"]
[Black "Maghsoodloo, Parham"]
[Result "1-0"]
[Annotator "TA"]
[ECO "B90"]
[WhiteElo "2608"]
[BlackElo "2707"]
[PlyCount "115"]
[EventDate "2023.09.18"]
[EventType "k.o."]
[EventCountry "NET"]
[SourceTitle "playchess.com"]
[Source "ChessBase"]
[SourceQuality "1"]
[TimeControl "900+3"]

{[%evp 21,115,13,22,22,29,24,48,50,53,41,30,-31,-41,-47,-55,-52,239,253,248,252,249,244,288,185,203,200,200,185,185,185,187,187,187,187,195,195,350,343,343,343,308,154,532,532,532,207,610,608,593,579,564,523,392,289,820,810,772,770,705,600,3558,3521,2087,1814,3347,1263,1256,1263,1256,1233,12633,1218,1218,0,6442,885,6195,5081,29976,29976,29983,29979,29980,29981,29981,29982,29982,29983,29983,29984,29985,29986,29986,29987,29987,29988]} 1. e4 {[%emt 0:00:04]} c5 {[%emt 0:00:05]} 2. Nf3 {[%emt 0:00:01]} d6 {[%emt 0:00:00]} 3. d4 {[%emt 0:00:13]} cxd4 {[%emt 0:00:01]} 4. Nxd4 {[%emt 0:00:01]} Nf6 {[%emt 0:00:00]} 5. Nc3 {[%emt 0:00:01]} Nc6 {[%emt 0:00:01]} 6. Be2 {[%emt 0:00:03]} g6 {[%emt 0:00:06]} 7. O-O {[%emt 0:00:05]} Bg7 {[%emt 0:00:01]} 8. Be3 {[%emt 0:00:00]} O-O {[%emt 0:00:01]} 9. a4 {[%emt 0:00:01]} Bd7 {[%emt 0:00:10]} 10. Qd2 {[%emt 0:00:05]} a6 {[%emt 0:00:22]} 11. f3 {[%emt 0:00:03]} Rc8 {[%emt 0:00:13]} 12. Rfd1 {[%emt 0:00:03] B90: Sicilian Najdorf: Unusual White 6th moves, 6 Be3 Ng4 and 6 Be3 e5.} Ne5 {[%emt 0:00:01]} 13. a5 {[%emt 0:00:04]} Nc4 {[%emt 0:00:05]} 14. Bxc4 {[%emt 0:00:01] White is slightly better.} Rxc4 {[%emt 0:00:00]} 15. b3 {[%emt 0:00:09] [#]} (15. Nde2 {simplifies} Rc8 16. Na4 Bxa4 17. Rxa4 Nd7 18. b3) 15... Rc5 $146 {[%emt 0:00:03] [#]} ({Predecessor:} 15... Rc8 16. Nde2 Be6 17. Na4 Nd7 18. Rac1 Qe8 19. Nd4 Ne5 20. Nb6 Rd8 21. c4 Nc6 {1-0 Lane,G (2379)-Fitzsimons,D (2167) GBR-ch 96th Torquay 2009 (10)}) 16. Ne6 {[%emt 0:01:19]} fxe6 $15 {[%emt 0:00:52]} 17. Bxc5 {[%emt 0:00:02]} dxc5 {[%emt 0:00:00]} 18. e5 {[%emt 0:00:01] [#]} Nd5 {[%emt 0:00:00][%mdl 8192] White leaves nothing to chance now.} 19. Nxd5 $18 {[%emt 0:00:01]} Bxe5 {[%emt 0:00:01] [#]} 20. c3 $1 {[%emt 0:00:29]} Bc6 {[%emt 0:03:07] [#]} 21. Nf6+ {[%emt 0:00:06][%mdl 576] Discovered Attack} Kf7 {[%emt 0:00:04] And now ...Qxd2 would win.} (21... exf6 22. Qxd8) 22. Qxd8 {[%emt 0:01:40]} Rxd8 {[%emt 0:00:02]} 23. Rxd8 {[%emt 0:00:01]} Bxc3 {[%emt 0:00:01]} 24. Rc1 {[%emt 0:02:07]} Bxa5 {[%emt 0:00:01] A strong pair of Bishops.} 25. Rc8 {[%emt 0:00:09]} (25. Nxh7 $6 Bxd8 26. Ng5+ (26. Rxc5 $2 Bb6 $19) 26... Kf6 27. Ne4+ Bxe4 28. fxe4 Bc7 $14) 25... exf6 {[%emt 0:00:02] [#]} 26. Rxc6 {[%emt 0:00:02][%mdl 512]} bxc6 {[%emt 0:00:01][%mdl 4096] Endgame KR-KB} 27. Ra1 $1 {[%emt 0:00:02]} (27. Rxc5 $2 {is the wrong capture.} Bb6 28. Kf2 Bxc5+ $19) 27... Bc3 {[%emt 0:01:08]} 28. Rxa6 {[%emt 0:00:02]} c4 $2 {[%emt 0:00:21]} (28... h5 {was worth a try.} 29. h4 (29. Rxc6 g5 $16) 29... g5) 29. bxc4 {[%emt 0:00:07]} c5 {[%emt 0:00:01]} 30. Ra7+ {[%emt 0:00:05]} Kg8 {[%emt 0:00:01]} 31. f4 {[%emt 0:03:03]} (31. g4 $18) 31... e5 $2 {[%emt 0:00:02]} (31... Bd4+ $16 32. Kf1 h6) 32. fxe5 {[%emt 0:00:05]} Bxe5 {[%emt 0:00:02]} 33. h3 $2 {[%emt 0:00:05]} (33. Kf2 f5 34. h3) 33... h5 $2 {[%emt 0:00:01]} (33... f5 34. Kf1 Kf8) 34. Kf2 {[%emt 0:00:04]} Kf8 {[%emt 0:00:34]} 35. Ke2 {[%emt 0:00:12]} f5 {[%emt 0:00:33]} 36. Kd3 {[%emt 0:00:01]} Ke8 {[%emt 0:00:59]} 37. Kc2 {[%emt 0:00:05] Kb3 would be deadly.} Bd4 $2 {[%emt 0:00:16]} (37... Bf6 38. Rc7 Be7) 38. Kb3 {[%emt 0:00:03]} Kf8 {[%emt 0:00:02]} 39. Ka4 {[%emt 0:01:21]} Ke8 {[%emt 0:00:03]} 40. Kb5 {[%emt 0:00:02]} h4 {[%emt 0:00:01]} 41. Kc6 {[%emt 0:00:10]} Kf8 {[%emt 0:00:08]} 42. Kd5 {[%emt 0:00:04]} Kg8 {[%emt 0:00:03]} 43. Ke6 {[%emt 0:00:09]} (43. Rc7 $142 g5 44. Ke6) 43... Bc3 {[%emt 0:00:07]} 44. Rc7 {[%emt 0:00:09]} Bd4 {[%emt 0:00:01]} 45. Kd5 {[%emt 0:00:03] White threatens Rxc5 and mate.} Kf8 {[%emt 0:00:02]} 46. Rh7 {[%emt 0:00:13]} (46. Rxc5 $142 Be3 47. Rc6) 46... Bf2 {[%emt 0:00:02]} 47. Rc7 {[%emt 0:00:59]} (47. Ra7 $142 Bd4 48. Rc7) 47... Bd4 {[%emt 0:00:04]} 48. Kd6 {[%emt 0:00:29]} (48. Rxc5 $142 Bg1 49. Rc6) 48... Bf2 {[%emt 0:00:59]} 49. Rxc5 {[%emt 0:00:14] Threatens to win with Rc8+.} Bxc5+ {[%emt 0:00:04]} 50. Kxc5 {[%emt 0:00:00] K3P-K3P. White mates.} g5 {[%emt 0:00:01]} 51. Kd6 {[%emt 0:00:08]} g4 {[%emt 0:00:05] [#]} 52. Ke5 $1 {[%emt 0:00:04]} gxh3 {[%emt 0:00:05]} 53. gxh3 {[%emt 0:00:00]} (53. Kxf5 {gets mated.} hxg2 54. c5 g1=Q 55. c6 h3 56. Kf4 h2 57. c7 Qc1+ 58. Kf5 h1=Q 59. c8=Q+ Qxc8+ 60. Kf6 Qh6+ 61. Ke5 Qc5+ 62. Ke4 Qhe3#) 53... Ke7 {[%emt 0:00:01]} 54. Kxf5 {[%emt 0:00:00] KPP-KP} Kd6 {[%emt 0:00:00]} 55. Kg4 {[%emt 0:00:01]} Kc5 {[%emt 0:00:01]} 56. Kxh4 {[%emt 0:00:00]} Kxc4 {[%emt 0:00:00]} 57. Kg5 {[%emt 0:00:00]} Kd5 {[%emt 0:00:01]} 58. Kf6 {[%emt 0:00:05] An entertaining game by Demchenko.   Weighted Error Value: White=0.47/Black=0.63} 1-0

[Event "AI Cup Div-3 2023"]
[Site "Online"]
[Date "2023.09.25"]
[Round "51.1"]
[White "Kravtsiv, Martyn"]
[Black "Sargsyan, Shant"]
[Result "1-0"]
[Annotator "ChessBase"]
[ECO "B06"]
[WhiteElo "2598"]
[BlackElo "2631"]
[PlyCount "57"]
[EventDate "2023.09.18"]
[EventType "k.o."]
[EventCountry "NET"]
[SourceTitle "playchess.com"]
[Source "ChessBase"]
[SourceQuality "1"]
[TimeControl "900+3"]

1. e4 {[%emt 0:00:03]} g6 {[%emt 0:00:05]} 2. d4 {[%emt 0:00:03]} Bg7 {[%emt 0:00:00]} 3. Nc3 {[%emt 0:00:01]} a6 {[%emt 0:00:01]} 4. f4 {[%emt 0:00:07]} b5 {[%emt 0:00:02]} 5. Nf3 {[%emt 0:00:02]} Bb7 {[%emt 0:00:00]} 6. Bd3 {[%emt 0:00:01]} d6 {[%emt 0:00:01]} 7. a4 {[%emt 0:00:07]} b4 {[%emt 0:00:01]} 8. Ne2 {[%emt 0:00:02]} Nd7 {[%emt 0:00:01]} 9. O-O {[%emt 0:00:15]} c5 {[%emt 0:00:01]} 10. c3 {[%emt 0:00:03]} Ngf6 {[%emt 0:00:03]} 11. Ng3 {[%emt 0:00:33]} bxc3 {[%emt 0:00:08]} 12. bxc3 {[%emt 0:00:02]} cxd4 {[%emt 0:00:01]} 13. cxd4 {[%emt 0:00:02]} O-O {[%emt 0:00:00]} 14. f5 {[%emt 0:01:05]} Rc8 {[%emt 0:00:04]} 15. Qe2 {[%emt 0:00:25]} e5 {[%emt 0:00:47]} 16. fxe6 {[%emt 0:00:26]} fxe6 {[%emt 0:00:00]} 17. Rb1 {[%emt 0:02:11]} Bc6 {[%emt 0:00:05]} 18. Ba3 {[%emt 0:01:06]} Nb6 {[%emt 0:00:11]} 19. Bxa6 {[%emt 0:02:12]} Ra8 {[%emt 0:00:02]} 20. a5 {[%emt 0:03:34]} Na4 {[%emt 0:00:44]} 21. Qc4 {[%emt 0:00:03]} Qxa5 {[%emt 0:00:04]} 22. Bb7 {[%emt 0:00:32]} Bxb7 {[%emt 0:00:20]} 23. Qxe6+ {[%emt 0:00:02]} Kh8 {[%emt 0:00:01]} 24. Rxb7 {[%emt 0:00:01]} Qc3 {[%emt 0:00:54]} 25. Bxd6 {[%emt 0:00:38]} Qe3+ {[%emt 0:00:01]} 26. Kh1 {[%emt 0:00:02]} Rfe8 {[%emt 0:00:02]} 27. Qf7 {[%emt 0:00:09]} Rg8 {[%emt 0:00:00]} 28. Ne5 {[%emt 0:00:26]} Nc3 {[%emt 0:00:58]} 29. Qc7 {[%emt 0:00:39]} 1-0

[Event "AI Cup Div-3 2023"]
[Site "Online"]
[Date "2023.09.25"]
[Round "51.1"]
[White "Vokhidov, Shamsiddin"]
[Black "Beerdsen, Thomas"]
[Result "0-1"]
[Annotator "ChessBase"]
[ECO "C63"]
[WhiteElo "2578"]
[BlackElo "2511"]
[PlyCount "122"]
[EventDate "2023.09.18"]
[EventType "k.o."]
[EventCountry "NET"]
[SourceTitle "playchess.com"]
[Source "ChessBase"]
[SourceQuality "1"]
[TimeControl "900+3"]

1. e4 {[%emt 0:00:04]} e5 {[%emt 0:00:10]} 2. Nf3 {[%emt 0:00:01]} Nc6 {[%emt 0:00:01]} 3. Bb5 {[%emt 0:00:01]} f5 {[%emt 0:00:02]} 4. Nc3 {[%emt 0:00:08]} fxe4 {[%emt 0:00:02]} 5. Nxe4 {[%emt 0:00:00]} Nf6 {[%emt 0:00:01]} 6. Qe2 {[%emt 0:00:05]} d5 {[%emt 0:00:04]} 7. Nxf6+ {[%emt 0:00:03]} gxf6 {[%emt 0:00:02]} 8. d4 {[%emt 0:00:12]} Bg7 {[%emt 0:00:01]} 9. dxe5 {[%emt 0:00:07]} O-O {[%emt 0:00:02]} 10. e6 {[%emt 0:00:10]} Ne5 {[%emt 0:00:12]} 11. Nd4 {[%emt 0:00:23]} f5 {[%emt 0:01:42]} 12. Bf4 {[%emt 0:02:26]} Ng6 {[%emt 0:00:24]} 13. e7 {[%emt 0:00:02]} Qxe7 {[%emt 0:01:03]} 14. Qxe7 {[%emt 0:00:42]} Nxe7 {[%emt 0:00:00]} 15. O-O-O {[%emt 0:00:02]} c6 {[%emt 0:01:06]} 16. Bd6 {[%emt 0:00:07]} Rf7 {[%emt 0:00:38]} 17. Rhe1 {[%emt 0:00:05]} Bf6 {[%emt 0:01:53]} 18. Be2 {[%emt 0:01:29]} Bd7 {[%emt 0:00:23]} 19. Bh5 {[%emt 0:00:23]} Ng6 {[%emt 0:00:15]} 20. Ne6 {[%emt 0:00:11]} Re8 {[%emt 0:01:37]} 21. Nc5 {[%emt 0:00:06]} Rxe1 {[%emt 0:00:16]} 22. Rxe1 {[%emt 0:00:04]} b6 {[%emt 0:00:13]} 23. Nxd7 {[%emt 0:01:08]} Rxd7 {[%emt 0:00:00]} 24. Bb8 {[%emt 0:00:15]} Kf7 {[%emt 0:00:12]} 25. g3 {[%emt 0:00:15]} a5 {[%emt 0:00:58]} 26. a4 {[%emt 0:00:36]} Rb7 {[%emt 0:00:14]} 27. Bf4 {[%emt 0:00:04]} b5 {[%emt 0:00:07]} 28. axb5 {[%emt 0:00:07]} Rxb5 {[%emt 0:00:01]} 29. c3 {[%emt 0:00:08]} d4 {[%emt 0:00:40]} 30. Be2 {[%emt 0:00:09]} dxc3 {[%emt 0:01:51]} 31. Bxb5 {[%emt 0:00:25]} cxb2+ {[%emt 0:00:03]} 32. Kc2 {[%emt 0:00:00]} cxb5 {[%emt 0:00:06]} 33. Bc7 {[%emt 0:00:12]} a4 {[%emt 0:01:03]} 34. Bd6 {[%emt 0:00:03]} Ne7 {[%emt 0:00:08]} 35. Bxe7 {[%emt 0:00:34]} Bxe7 {[%emt 0:00:03]} 36. Kxb2 {[%emt 0:01:23]} b4 {[%emt 0:00:25]} 37. f3 {[%emt 0:00:54]} h5 {[%emt 0:00:10]} 38. Ka2 {[%emt 0:00:09]} Bf6 {[%emt 0:00:16]} 39. h3 {[%emt 0:00:10]} Bc3 {[%emt 0:00:10]} 40. Re3 {[%emt 0:00:06]} Kf6 {[%emt 0:00:16]} 41. Re8 {[%emt 0:00:07]} Kf7 {[%emt 0:00:11]} 42. Ra8 {[%emt 0:00:03]} a3 {[%emt 0:00:03]} 43. Ra6 {[%emt 0:00:13]} Be1 {[%emt 0:00:03]} 44. Kb3 {[%emt 0:00:03]} Bc3 {[%emt 0:00:03]} 45. Rh6 {[%emt 0:00:07]} Be1 {[%emt 0:00:03]} 46. Rxh5 {[%emt 0:00:04]} Bxg3 {[%emt 0:00:05]} 47. Rxf5+ {[%emt 0:00:38]} Kg6 {[%emt 0:00:01]} 48. Rd5 {[%emt 0:00:10]} Be1 {[%emt 0:00:01]} 49. f4 {[%emt 0:00:11]} Kf6 {[%emt 0:00:01]} 50. Rd1 {[%emt 0:00:13]} Bc3 {[%emt 0:00:05]} 51. Rd5 {[%emt 0:00:44]} Be1 {[%emt 0:00:02]} 52. Rc5 {[%emt 0:00:01]} Bd2 {[%emt 0:00:02]} 53. f5 {[%emt 0:00:35]} Be1 {[%emt 0:00:01]} 54. Rc1 {[%emt 0:00:06]} Bd2 {[%emt 0:00:05]} 55. Rf1 {[%emt 0:00:00]} Bc3 {[%emt 0:00:08]} 56. h4 {[%emt 0:00:05]} Be5 {[%emt 0:00:01]} 57. Rf3 {[%emt 0:00:09]} Bd4 {[%emt 0:00:03]} 58. Rf4 {[%emt 0:00:09]} Bc3 {[%emt 0:00:02]} 59. Rf3 {[%emt 0:00:22]} Bd4 {[%emt 0:00:04]} 60. Rf1 {[%emt 0:00:10]} Be5 {[%emt 0:00:04]} 61. Ka2 {[%emt 0:00:15]} Bc3 {[%emt 0:00:03]} 0-1

[Event "AI Cup Div-3 2023"]
[Site "Online"]
[Date "2023.09.25"]
[Round "51.1"]
[White "Asadli, Vugar"]
[Black "Guseinov, Gadir"]
[Result "1/2-1/2"]
[Annotator "ChessBase"]
[ECO "B45"]
[WhiteElo "2563"]
[BlackElo "2636"]
[PlyCount "43"]
[EventDate "2023.09.18"]
[EventType "k.o."]
[EventCountry "NET"]
[SourceTitle "playchess.com"]
[Source "ChessBase"]
[SourceQuality "1"]
[TimeControl "900+3"]

1. e4 {[%emt 0:00:06]} c5 {[%emt 0:00:05]} 2. Nf3 {[%emt 0:00:01]} e6 {[%emt 0:00:03]} 3. d4 {[%emt 0:00:05]} cxd4 {[%emt 0:00:01]} 4. Nxd4 {[%emt 0:00:00]} Nf6 {[%emt 0:00:01]} 5. Nc3 {[%emt 0:00:03]} Nc6 {[%emt 0:00:01]} 6. Nxc6 {[%emt 0:00:02]} bxc6 {[%emt 0:00:06]} 7. e5 {[%emt 0:00:04]} Nd5 {[%emt 0:00:03]} 8. Ne4 {[%emt 0:00:01]} Qc7 {[%emt 0:00:22]} 9. f4 {[%emt 0:00:03]} Qb6 {[%emt 0:00:01]} 10. c4 {[%emt 0:00:02]} Ne3 {[%emt 0:00:25]} 11. Qd3 {[%emt 0:00:04]} Bb4+ {[%emt 0:00:06]} 12. Bd2 {[%emt 0:00:10]} Ba6 {[%emt 0:00:23]} 13. Bxb4 {[%emt 0:00:08]} Qxb4+ {[%emt 0:00:03]} 14. Kf2 {[%emt 0:00:12]} Qxb2+ {[%emt 0:00:09]} 15. Be2 {[%emt 0:00:03]} Nxc4 {[%emt 0:00:01]} 16. Rab1 {[%emt 0:00:27]} Nxe5 {[%emt 0:00:12]} 17. fxe5 {[%emt 0:00:05]} Qxe5 {[%emt 0:00:00]} 18. Qxa6 {[%emt 0:00:02]} Qxe4 {[%emt 0:00:01]} 19. Rhd1 {[%emt 0:00:11]} O-O {[%emt 0:00:04]} 20. Bf3 {[%emt 0:00:08]} Qf5 {[%emt 0:00:04]} 21. Kg1 {[%emt 0:00:04]} Rfc8 {[%emt 0:00:04]} 22. Rb7 {[%emt 0:00:26]} 1/2-1/2